[Event "Early-Titled-Tuesday-Blitz-July-09-2024"]
[Site "Chess.com"]
[Date "2024.07.09"]
[Round "4"]
[White "Happy1712Drummer"]
[Black "SahibSinghKnight"]
[Result "0-1"]
[WhiteElo "2472"]
[BlackElo "2679"]
[TimeControl "180+1"]
[EndTime "8:39:00 PDT"]
[Termination "SahibSinghKnight won by resignation"]

1. e4 {[%clk 0:03:00.9]} 1... c5 {[%clk 0:03:00]} 2. Nf3 {[%clk 0:03:00.9]} 2...
d6 {[%clk 0:03:00.1]} 3. Bb5+ {[%clk 0:03:01.1]} 3... Bd7 {[%clk 0:03:00.2]} 4.
Bxd7+ {[%clk 0:03:00.8]} 4... Qxd7 {[%clk 0:03:00.9]} 5. O-O {[%clk 0:03:01.2]}
5... g6 {[%clk 0:03:00.6]} 6. c3 {[%clk 0:03:00.2]} 6... Bg7 {[%clk 0:03:00.7]}
7. d4 {[%clk 0:03:00.5]} 7... cxd4 {[%clk 0:02:59.3]} 8. cxd4 {[%clk 0:03:01.4]}
8... Nc6 {[%clk 0:02:59.7]} 9. Nc3 {[%clk 0:03:01]} 9... Nf6 {[%clk 0:02:56.6]}
10. h3 {[%clk 0:02:59.9]} 10... O-O {[%clk 0:02:55.2]} 11. d5 {[%clk 0:02:54]}
11... Ne5 {[%clk 0:02:48.4]} 12. Nxe5 {[%clk 0:02:39.7]} 12... dxe5 {[%clk
0:02:48.5]} 13. Re1 {[%clk 0:02:38.3]} 13... Ne8 {[%clk 0:02:46.1]} 14. Be3
{[%clk 0:02:24.3]} 14... f5 {[%clk 0:02:43.8]} 15. exf5 {[%clk 0:02:24.3]} 15...
gxf5 {[%clk 0:02:44.1]} 16. Rc1 {[%clk 0:02:09.4]} 16... Nd6 {[%clk 0:02:41.3]}
17. Bg5 {[%clk 0:02:03.5]} 17... h6 {[%clk 0:02:27.4]} 18. Bh4 {[%clk
0:02:02.8]} 18... Rac8 {[%clk 0:02:16.5]} 19. Qh5 {[%clk 0:02:01.6]} 19... Rc4
{[%clk 0:02:05.3]} 20. Ne2 {[%clk 0:01:41.7]} 20... Rb4 {[%clk 0:01:55.4]} 21.
b3 {[%clk 0:01:37.4]} 21... f4 {[%clk 0:01:55.6]} 22. f3 {[%clk 0:01:32.8]}
22... e4 {[%clk 0:01:53.2]} 23. fxe4 {[%clk 0:01:27.2]} 23... Rxe4 {[%clk
0:01:53.2]} 24. Nc3 {[%clk 0:01:15.5]} 24... Rxe1+ {[%clk 0:01:34.6]} 25. Bxe1
{[%clk 0:01:13.8]} 25... f3 {[%clk 0:01:32.9]} 26. gxf3 {[%clk 0:00:51]} 26...
Rf5 {[%clk 0:01:32.4]} 27. Qh4 {[%clk 0:00:41]} 27... Bf6 {[%clk 0:01:31.9]} 28.
Qf2 {[%clk 0:00:34.9]} 28... Rh5 {[%clk 0:01:20.8]} 29. Qg2+ {[%clk 0:00:25.5]}
29... Rg5 {[%clk 0:01:20.2]} 30. Bg3 {[%clk 0:00:25.7]} 30... Be5 {[%clk
0:01:02.4]} 31. Ne2 {[%clk 0:00:24.3]} 31... Bxg3 {[%clk 0:01:02.4]} 32. Nxg3
{[%clk 0:00:22.7]} 32... Nf5 {[%clk 0:01:02.5]} 33. Kh2 {[%clk 0:00:11.2]} 33...
Rxg3 {[%clk 0:01:00.3]} 34. Qc2 {[%clk 0:00:07.8]} 34... Rxh3+ {[%clk
0:00:57.5]} 35. Kg2 {[%clk 0:00:04.4]} 35... Ne3+ {[%clk 0:00:57.6]} 0-1

[Event "Early-Titled-Tuesday-Blitz-July-09-2024"]
[Site "Chess.com"]
[Date "2024.07.09"]
[Round "4"]
[White "Adar_07"]
[Black "JoliyRoger"]
[Result "1-0"]
[WhiteElo "2750"]
[BlackElo "2425"]
[TimeControl "180+1"]
[EndTime "8:39:00 PDT"]
[Termination "Adar_07 won by resignation"]

1. Nf3 {[%clk 0:02:56.2]} 1... Nf6 {[%clk 0:03:00.1]} 2. d4 {[%clk 0:02:54.2]}
2... e6 {[%clk 0:02:58.4]} 3. c4 {[%clk 0:02:53.5]} 3... c5 {[%clk 0:02:58.9]}
4. d5 {[%clk 0:02:53.3]} 4... exd5 {[%clk 0:02:59.4]} 5. cxd5 {[%clk 0:02:54.2]}
5... d6 {[%clk 0:03:00.1]} 6. Nc3 {[%clk 0:02:54.1]} 6... g6 {[%clk 0:03:00.6]}
7. Nd2 {[%clk 0:02:51.1]} 7... Nbd7 {[%clk 0:02:59.3]} 8. e4 {[%clk 0:02:50.9]}
8... Bg7 {[%clk 0:02:59]} 9. Be2 {[%clk 0:02:48.3]} 9... O-O {[%clk 0:02:59.2]}
10. O-O {[%clk 0:02:48.9]} 10... a6 {[%clk 0:02:58.7]} 11. a4 {[%clk 0:02:48.5]}
11... Re8 {[%clk 0:02:58.9]} 12. Re1 {[%clk 0:02:46.9]} 12... Rb8 {[%clk
0:02:57.8]} 13. Bf1 {[%clk 0:02:45]} 13... h6 {[%clk 0:02:53]} 14. Nc4 {[%clk
0:02:43.2]} 14... Nb6 {[%clk 0:02:52.9]} 15. Nd2 {[%clk 0:02:29.2]} 15... Nbd7
{[%clk 0:02:47.5]} 16. a5 {[%clk 0:02:27.5]} 16... g5 {[%clk 0:02:41.2]} 17. Nc4
{[%clk 0:02:27.8]} 17... Ne5 {[%clk 0:02:35.6]} 18. Nb6 {[%clk 0:02:28]} 18...
Bg4 {[%clk 0:02:31.9]} 19. f3 {[%clk 0:02:26.8]} 19... Bh5 {[%clk 0:02:29.1]}
20. Be3 {[%clk 0:02:15.1]} 20... Ned7 {[%clk 0:02:18.6]} 21. Nc4 {[%clk
0:02:05.1]} 21... Ne5 {[%clk 0:02:16.8]} 22. Qb3 {[%clk 0:01:59.1]} 22... Nxc4
{[%clk 0:02:10.4]} 23. Bxc4 {[%clk 0:02:00]} 23... Nd7 {[%clk 0:02:09.1]} 24.
Bf2 {[%clk 0:01:57.9]} 24... Bg6 {[%clk 0:02:08.3]} 25. Bf1 {[%clk 0:01:53.3]}
25... f5 {[%clk 0:01:58.8]} 26. Bd3 {[%clk 0:01:48.9]} 26... f4 {[%clk
0:01:49.4]} 27. Bf1 {[%clk 0:01:42.4]} 27... Ne5 {[%clk 0:01:46.6]} 28. Kh1
{[%clk 0:01:35.8]} 28... h5 {[%clk 0:01:38.8]} 29. Na4 {[%clk 0:01:35.5]} 29...
Bf6 {[%clk 0:01:31.2]} 30. Qb6 {[%clk 0:01:31.1]} 30... g4 {[%clk 0:01:22.5]}
31. Ra3 {[%clk 0:01:24.4]} 31... Qd7 {[%clk 0:01:19]} 32. Nxc5 {[%clk 0:01:23]}
32... dxc5 {[%clk 0:01:15.5]} 33. Qxf6 {[%clk 0:01:23.9]} 33... Rf8 {[%clk
0:01:02]} 34. Qxe5 {[%clk 0:01:23.4]} 34... Rbe8 {[%clk 0:00:51.2]} 35. Qg5
{[%clk 0:01:23.6]} 35... Kh7 {[%clk 0:00:51.4]} 36. Rb3 {[%clk 0:01:22]} 36...
Qc7 {[%clk 0:00:41.3]} 37. Rb6 {[%clk 0:01:20.8]} 37... Rg8 {[%clk 0:00:39.9]}
38. e5 {[%clk 0:01:19.5]} 38... c4 {[%clk 0:00:34.9]} 39. d6 {[%clk 0:01:15.8]}
39... Qd7 {[%clk 0:00:35.4]} 40. e6 {[%clk 0:01:16.2]} 40... Rxe6 {[%clk
0:00:35.4]} 41. Rxe6 {[%clk 0:01:17.1]} 41... Qxe6 {[%clk 0:00:36]} 42. Rxb7+
{[%clk 0:01:17.7]} 42... Rg7 {[%clk 0:00:34.3]} 43. Rxg7+ {[%clk 0:01:14.2]}
43... Kxg7 {[%clk 0:00:34.7]} 44. Qe7+ {[%clk 0:01:14.9]} 44... Qxe7 {[%clk
0:00:34.2]} 45. dxe7 {[%clk 0:01:15.8]} 45... Kf7 {[%clk 0:00:32.9]} 46. Bh4
{[%clk 0:01:15.6]} 46... Bd3 {[%clk 0:00:31.3]} 47. Kg1 {[%clk 0:01:15.3]} 47...
gxf3 {[%clk 0:00:30.3]} 48. gxf3 {[%clk 0:01:15.5]} 1-0

[Event "Early-Titled-Tuesday-Blitz-July-09-2024"]
[Site "Chess.com"]
[Date "2024.07.09"]
[Round "4"]
[White "shimastream"]
[Black "KevinGeorgeMicheal"]
[Result "1-0"]
[WhiteElo "2899"]
[BlackElo "2526"]
[TimeControl "180+1"]
[EndTime "8:39:01 PDT"]
[Termination "shimastream won by resignation"]

1. e4 {[%clk 0:03:00.9]} 1... e5 {[%clk 0:02:59.2]} 2. Nf3 {[%clk 0:03:00.1]}
2... Nc6 {[%clk 0:02:58]} 3. Bb5 {[%clk 0:03:00.5]} 3... a6 {[%clk 0:02:57.1]}
4. Ba4 {[%clk 0:02:59.9]} 4... Nf6 {[%clk 0:02:48.8]} 5. Nc3 {[%clk 0:02:59.4]}
5... Bc5 {[%clk 0:02:46.4]} 6. Bxc6 {[%clk 0:02:44.6]} 6... dxc6 {[%clk
0:02:44.8]} 7. Nxe5 {[%clk 0:02:43.4]} 7... Bxf2+ {[%clk 0:02:41.6]} 8. Kxf2
{[%clk 0:02:43.6]} 8... Qd4+ {[%clk 0:02:41.5]} 9. Ke1 {[%clk 0:02:44.1]} 9...
Qxe5 {[%clk 0:02:41.7]} 10. d3 {[%clk 0:02:44.7]} 10... Bg4 {[%clk 0:02:35.3]}
11. Qd2 {[%clk 0:02:44.6]} 11... O-O-O {[%clk 0:02:34.7]} 12. Qg5 {[%clk
0:02:41.8]} 12... Qe7 {[%clk 0:02:26.6]} 13. Rf1 {[%clk 0:02:36.3]} 13... Rhg8
{[%clk 0:02:11.3]} 14. Be3 {[%clk 0:02:33.5]} 14... h6 {[%clk 0:02:09.1]} 15.
Qc5 {[%clk 0:02:33.3]} 15... Qxc5 {[%clk 0:02:05.1]} 16. Bxc5 {[%clk 0:02:34.2]}
16... Nd7 {[%clk 0:02:03.4]} 17. Be3 {[%clk 0:02:31.2]} 17... Rdf8 {[%clk
0:01:58.2]} 18. Kd2 {[%clk 0:02:29.1]} 18... Be6 {[%clk 0:01:55.8]} 19. Rf2
{[%clk 0:02:19.3]} 19... f5 {[%clk 0:01:49.6]} 20. Raf1 {[%clk 0:02:18.9]} 20...
fxe4 {[%clk 0:01:45.2]} 21. dxe4 {[%clk 0:02:13.4]} 21... Rxf2+ {[%clk
0:01:40.9]} 22. Rxf2 {[%clk 0:02:14.3]} 22... Rf8 {[%clk 0:01:40.3]} 23. Rxf8+
{[%clk 0:02:12]} 23... Nxf8 {[%clk 0:01:39.7]} 24. Bd4 {[%clk 0:02:12.9]} 24...
g6 {[%clk 0:01:00]} 25. Bg7 {[%clk 0:02:11.9]} 25... Nh7 {[%clk 0:01:00.7]} 26.
Bxh6 {[%clk 0:02:11.7]} 26... Kd7 {[%clk 0:01:01.1]} 27. h3 {[%clk 0:02:09.9]}
27... Ke7 {[%clk 0:00:57.2]} 28. Bf4 {[%clk 0:02:08.1]} 28... Kd7 {[%clk
0:00:55.9]} 29. b3 {[%clk 0:02:06.4]} 29... Nf6 {[%clk 0:00:46.6]} 30. Ke3
{[%clk 0:02:05.8]} 30... Nh5 {[%clk 0:00:44.3]} 31. Be5 {[%clk 0:02:05.5]} 31...
Ke7 {[%clk 0:00:37.1]} 32. Bxc7 {[%clk 0:01:59.4]} 32... g5 {[%clk 0:00:35.5]}
33. Be5 {[%clk 0:01:58.5]} 33... g4 {[%clk 0:00:29.2]} 34. h4 {[%clk 0:01:56.8]}
34... Kf7 {[%clk 0:00:20.5]} 35. Na4 {[%clk 0:01:46.7]} 35... Bc8 {[%clk
0:00:14.8]} 36. Nb6 {[%clk 0:01:45.7]} 36... Be6 {[%clk 0:00:14.5]} 37. a4
{[%clk 0:01:45.8]} 37... g3 {[%clk 0:00:09.6]} 38. Kf3 {[%clk 0:01:45.2]} 38...
Kg6 {[%clk 0:00:08.6]} 39. a5 {[%clk 0:01:44.8]} 39... Bg8 {[%clk 0:00:07.5]}
40. Na4 {[%clk 0:01:44.4]} 40... Be6 {[%clk 0:00:06.7]} 41. Nc5 {[%clk
0:01:44.4]} 41... Bc8 {[%clk 0:00:07.3]} 42. b4 {[%clk 0:01:27.8]} 42... Nf6
{[%clk 0:00:03.1]} 43. Bxf6 {[%clk 0:01:27.4]} 1-0

[Event "Early-Titled-Tuesday-Blitz-July-09-2024"]
[Site "Chess.com"]
[Date "2024.07.09"]
[Round "4"]
[White "Slovineanu"]
[Black "maroro07"]
[Result "1-0"]
[WhiteElo "2570"]
[BlackElo "2366"]
[TimeControl "180+1"]
[EndTime "8:39:01 PDT"]
[Termination "Slovineanu won by resignation"]

1. d4 {[%clk 0:03:00.9]} 1... d5 {[%clk 0:02:52.5]} 2. Nf3 {[%clk 0:02:58.4]}
2... e6 {[%clk 0:02:52.6]} 3. c4 {[%clk 0:02:57]} 3... c5 {[%clk 0:02:51.4]} 4.
cxd5 {[%clk 0:02:56.3]} 4... exd5 {[%clk 0:02:52.3]} 5. e3 {[%clk 0:02:55.8]}
5... Nc6 {[%clk 0:02:45.9]} 6. Bb5 {[%clk 0:02:54.2]} 6... Nf6 {[%clk
0:02:44.9]} 7. O-O {[%clk 0:02:48.7]} 7... Bd6 {[%clk 0:02:41.3]} 8. dxc5 {[%clk
0:02:46.3]} 8... Bxc5 {[%clk 0:02:42.2]} 9. Bxc6+ {[%clk 0:02:44.9]} 9... bxc6
{[%clk 0:02:41.5]} 10. Qc2 {[%clk 0:02:45.8]} 10... Qd6 {[%clk 0:02:35.6]} 11.
b3 {[%clk 0:02:44]} 11... O-O {[%clk 0:02:34.4]} 12. Bb2 {[%clk 0:02:39.9]}
12... Bb6 {[%clk 0:02:32.3]} 13. Nbd2 {[%clk 0:02:16.6]} 13... Bg4 {[%clk
0:02:27.1]} 14. Rac1 {[%clk 0:02:03.2]} 14... Rac8 {[%clk 0:02:25.1]} 15. Rfd1
{[%clk 0:01:56.7]} 15... c5 {[%clk 0:02:24.1]} 16. Nc4 {[%clk 0:01:49.6]} 16...
Qe6 {[%clk 0:02:15.2]} 17. Ng5 {[%clk 0:01:41.2]} 17... Bxd1 {[%clk 0:02:00.5]}
18. Rxd1 {[%clk 0:01:36.2]} 18... Qg4 {[%clk 0:01:27.5]} 19. Bxf6 {[%clk
0:01:34.4]} 19... g6 {[%clk 0:01:26.9]} 20. Ne5 {[%clk 0:01:10.5]} 20... Qf5
{[%clk 0:00:38.2]} 21. Qxf5 {[%clk 0:01:08.1]} 21... gxf5 {[%clk 0:00:39.1]} 22.
Rxd5 {[%clk 0:01:01.7]} 22... h6 {[%clk 0:00:38.9]} 23. Ngf3 {[%clk 0:00:58.8]}
23... Bd8 {[%clk 0:00:31.7]} 24. Nd7 {[%clk 0:00:44.5]} 24... Re8 {[%clk
0:00:17.9]} 25. g3 {[%clk 0:00:33.6]} 25... Rc6 {[%clk 0:00:13.7]} 26. Bxd8
{[%clk 0:00:32.1]} 26... Rxd8 {[%clk 0:00:13.4]} 27. Nf6+ {[%clk 0:00:31.5]}
27... Kg7 {[%clk 0:00:12.8]} 28. Rxd8 {[%clk 0:00:32.4]} 28... Kxf6 {[%clk
0:00:13]} 1-0

[Event "Early-Titled-Tuesday-Blitz-July-09-2024"]
[Site "Chess.com"]
[Date "2024.07.09"]
[Round "4"]
[White "ilya2700"]
[Black "dey2580"]
[Result "1-0"]
[WhiteElo "2244"]
[BlackElo "2464"]
[TimeControl "180+1"]
[EndTime "8:39:03 PDT"]
[Termination "ilya2700 won on time"]

1. e4 {[%clk 0:03:00]} 1... e6 {[%clk 0:02:59.1]} 2. d4 {[%clk 0:03:00]} 2... d5
{[%clk 0:03:00]} 3. exd5 {[%clk 0:03:00.9]} 3... exd5 {[%clk 0:03:00.2]} 4. c4
{[%clk 0:03:01.5]} 4... Nf6 {[%clk 0:02:59.8]} 5. Nc3 {[%clk 0:03:01.5]} 5...
Be7 {[%clk 0:02:59.4]} 6. Nf3 {[%clk 0:03:01.5]} 6... O-O {[%clk 0:02:59.4]} 7.
Bd3 {[%clk 0:03:01.8]} 7... dxc4 {[%clk 0:02:58.6]} 8. Bxc4 {[%clk 0:03:02.7]}
8... Nbd7 {[%clk 0:02:58.3]} 9. O-O {[%clk 0:03:02.9]} 9... Nb6 {[%clk
0:02:58.5]} 10. Bb3 {[%clk 0:03:03]} 10... Nbd5 {[%clk 0:02:55.7]} 11. Re1
{[%clk 0:03:02.5]} 11... c6 {[%clk 0:02:55.6]} 12. Bg5 {[%clk 0:03:01.4]} 12...
h6 {[%clk 0:02:52.2]} 13. Bh4 {[%clk 0:03:00.9]} 13... Bg4 {[%clk 0:02:49.4]}
14. Qd3 {[%clk 0:02:58.6]} 14... Nf4 {[%clk 0:02:17.7]} 15. Qe3 {[%clk 0:02:50]}
15... Ng6 {[%clk 0:01:48.7]} 16. Bg3 {[%clk 0:02:39.6]} 16... Bxf3 {[%clk
0:01:47.6]} 17. Qxf3 {[%clk 0:02:40.5]} 17... Qxd4 {[%clk 0:01:46.3]} 18. Rad1
{[%clk 0:02:36.6]} 18... Qb4 {[%clk 0:01:45.7]} 19. Qf5 {[%clk 0:02:18.9]} 19...
Qg4 {[%clk 0:01:09.3]} 20. Qc2 {[%clk 0:02:08.3]} 20... Bc5 {[%clk 0:00:47.4]}
21. Ne4 {[%clk 0:01:55.4]} 21... Nxe4 {[%clk 0:00:44.2]} 22. Rxe4 {[%clk
0:01:56.3]} 22... Qh5 {[%clk 0:00:42.8]} 23. Rd7 {[%clk 0:01:29.6]} 23... Rad8
{[%clk 0:00:37.2]} 24. Bxf7+ {[%clk 0:01:17]} 24... Kh8 {[%clk 0:00:37.2]} 25.
Rxd8 {[%clk 0:01:09.4]} 25... Rxd8 {[%clk 0:00:36.8]} 26. Re1 {[%clk 0:01:08.5]}
26... Kh7 {[%clk 0:00:09.7]} 27. Bxg6+ {[%clk 0:01:04.5]} 27... Qxg6 {[%clk
0:00:09.4]} 28. Qxc5 {[%clk 0:01:04.7]} 28... Rd2 {[%clk 0:00:08.4]} 29. Qb4
{[%clk 0:01:01.4]} 29... Qd3 {[%clk 0:00:04.2]} 30. h3 {[%clk 0:00:56.3]} 30...
b5 {[%clk 0:00:02.9]} 31. Qe7 {[%clk 0:00:51]} 1-0

[Event "Early-Titled-Tuesday-Blitz-July-09-2024"]
[Site "Chess.com"]
[Date "2024.07.09"]
[Round "4"]
[White "Mr_ruthless"]
[Black "prosequi"]
[Result "1/2-1/2"]
[WhiteElo "2503"]
[BlackElo "2337"]
[TimeControl "180+1"]
[EndTime "8:39:05 PDT"]
[Termination "Game drawn by repetition"]

1. e4 {[%clk 0:03:00.9]} 1... c5 {[%clk 0:03:00]} 2. Nf3 {[%clk 0:03:00.3]} 2...
Nc6 {[%clk 0:03:00.3]} 3. d4 {[%clk 0:03:01]} 3... cxd4 {[%clk 0:03:01.2]} 4.
Nxd4 {[%clk 0:03:01.7]} 4... g6 {[%clk 0:03:01.9]} 5. Nc3 {[%clk 0:03:01.5]}
5... Bg7 {[%clk 0:03:02.4]} 6. Be3 {[%clk 0:03:02.2]} 6... Nf6 {[%clk
0:03:02.6]} 7. Be2 {[%clk 0:03:02.9]} 7... O-O {[%clk 0:03:00.6]} 8. O-O {[%clk
0:03:03.1]} 8... d5 {[%clk 0:03:01.1]} 9. exd5 {[%clk 0:03:04]} 9... Nxd5 {[%clk
0:03:01.7]} 10. Nxd5 {[%clk 0:03:04.8]} 10... Qxd5 {[%clk 0:03:02.6]} 11. Bf3
{[%clk 0:03:05.4]} 11... Qc4 {[%clk 0:03:03.3]} 12. Nxc6 {[%clk 0:03:06]} 12...
bxc6 {[%clk 0:03:03.3]} 13. c3 {[%clk 0:03:06.6]} 13... Be6 {[%clk 0:03:03]} 14.
Qc2 {[%clk 0:02:59.4]} 14... a5 {[%clk 0:02:59.7]} 15. Rfd1 {[%clk 0:02:58.1]}
15... a4 {[%clk 0:02:56]} 16. Bd4 {[%clk 0:02:56.7]} 16... Rfd8 {[%clk
0:02:48.4]} 17. Bxg7 {[%clk 0:02:38.8]} 17... Kxg7 {[%clk 0:02:47.2]} 18. g3
{[%clk 0:02:38.2]} 18... Rxd1+ {[%clk 0:02:40.1]} 19. Qxd1 {[%clk 0:02:35.9]}
19... a3 {[%clk 0:02:38.1]} 20. Qd2 {[%clk 0:02:14.3]} 20... axb2 {[%clk
0:02:33.9]} 21. Qxb2 {[%clk 0:02:15.2]} 21... Rxa2 {[%clk 0:02:09.3]} 22. Rxa2
{[%clk 0:02:16.1]} 22... Qxa2 {[%clk 0:02:10.2]} 23. Qxa2 {[%clk 0:02:16.1]}
23... Bxa2 {[%clk 0:02:11.1]} 24. Bxc6 {[%clk 0:02:15.9]} 24... Bc4 {[%clk
0:02:07.4]} 25. f4 {[%clk 0:02:16.2]} 25... Kf6 {[%clk 0:02:02.1]} 26. Kf2
{[%clk 0:02:16.3]} 26... Ke6 {[%clk 0:02:02.4]} 27. Ke3 {[%clk 0:02:16]} 27...
Kd6 {[%clk 0:02:02.9]} 28. Be8 {[%clk 0:02:15.6]} 28... f6 {[%clk 0:01:58.6]}
29. Kd4 {[%clk 0:02:15.4]} 29... Ba2 {[%clk 0:01:46.1]} 30. c4 {[%clk
0:02:13.5]} 30... e5+ {[%clk 0:01:46.4]} 31. fxe5+ {[%clk 0:02:09.6]} 31...
fxe5+ {[%clk 0:01:47.3]} 32. Kc3 {[%clk 0:02:10]} 32... Kc5 {[%clk 0:01:47.4]}
33. Bf7 {[%clk 0:02:10.1]} 33... g5 {[%clk 0:01:44.3]} 34. Bd5 {[%clk
0:01:45.4]} 34... h6 {[%clk 0:01:38.3]} 35. Bf7 {[%clk 0:01:44.5]} 35... Bb1
{[%clk 0:01:33.8]} 36. Kd2 {[%clk 0:01:35.2]} 36... Kd4 {[%clk 0:01:30.5]} 37.
h4 {[%clk 0:01:17.7]} 37... Ba2 {[%clk 0:01:23.9]} 38. hxg5 {[%clk 0:01:05.4]}
38... hxg5 {[%clk 0:01:24.8]} 39. Bh5 {[%clk 0:00:57.1]} 39... Bxc4 {[%clk
0:01:23.5]} 40. Bg4 {[%clk 0:00:57.2]} 40... e4 {[%clk 0:01:20.3]} 41. Bh5
{[%clk 0:00:57]} 41... e3+ {[%clk 0:01:20.6]} 42. Ke1 {[%clk 0:00:57.6]} 42...
Ke4 {[%clk 0:01:19.6]} 43. Bg4 {[%clk 0:00:57.4]} 43... Bb3 {[%clk 0:01:11.8]}
44. Ke2 {[%clk 0:00:56.7]} 44... Bc4+ {[%clk 0:01:11.1]} 45. Ke1 {[%clk
0:00:56.3]} 45... Bb5 {[%clk 0:01:11.7]} 46. Bh5 {[%clk 0:00:54.1]} 46... Bd7
{[%clk 0:01:10.6]} 47. Ke2 {[%clk 0:00:53.6]} 47... g4 {[%clk 0:01:07.9]} 48.
Bg6+ {[%clk 0:00:52.6]} 48... Kd4 {[%clk 0:01:08.2]} 49. Bh5 {[%clk 0:00:49.2]}
49... Bb5+ {[%clk 0:01:01.3]} 50. Ke1 {[%clk 0:00:49.3]} 50... Bd7 {[%clk
0:00:59.5]} 51. Ke2 {[%clk 0:00:49.8]} 51... Bf5 {[%clk 0:00:59.7]} 52. Be8
{[%clk 0:00:43.7]} 52... Be6 {[%clk 0:00:57.9]} 53. Bh5 {[%clk 0:00:41.8]} 53...
Bc4+ {[%clk 0:00:58.1]} 54. Ke1 {[%clk 0:00:42.1]} 54... Be6 {[%clk 0:00:59]}
55. Ke2 {[%clk 0:00:42.2]} 55... Bc4+ {[%clk 0:00:59.4]} 56. Ke1 {[%clk
0:00:42.2]} 56... Be6 {[%clk 0:01:00.3]} 57. Ke2 {[%clk 0:00:42.9]} 1/2-1/2

[Event "Early-Titled-Tuesday-Blitz-July-09-2024"]
[Site "Chess.com"]
[Date "2024.07.09"]
[Round "4"]
[White "BardArtem"]
[Black "FollowRivers"]
[Result "1-0"]
[WhiteElo "2820"]
[BlackElo "2519"]
[TimeControl "180+1"]
[EndTime "8:39:07 PDT"]
[Termination "BardArtem won by resignation"]

1. e4 {[%clk 0:03:00.9]} 1... c5 {[%clk 0:02:59.4]} 2. Nf3 {[%clk 0:03:00]} 2...
d6 {[%clk 0:02:59.1]} 3. Nc3 {[%clk 0:02:59.3]} 3... g6 {[%clk 0:02:57.1]} 4. d4
{[%clk 0:02:58.4]} 4... cxd4 {[%clk 0:02:56.3]} 5. Qxd4 {[%clk 0:02:59.2]} 5...
Nf6 {[%clk 0:02:54.7]} 6. e5 {[%clk 0:02:59.2]} 6... Nc6 {[%clk 0:02:52.1]} 7.
Bb5 {[%clk 0:02:59.2]} 7... dxe5 {[%clk 0:02:34.9]} 8. Qxd8+ {[%clk 0:03:00.1]}
8... Kxd8 {[%clk 0:02:34.4]} 9. Bxc6 {[%clk 0:03:01]} 9... bxc6 {[%clk 0:02:34]}
10. Nxe5 {[%clk 0:03:01.9]} 10... Ke8 {[%clk 0:02:33.3]} 11. Bd2 {[%clk
0:03:02.1]} 11... Bg7 {[%clk 0:02:24.4]} 12. O-O-O {[%clk 0:03:00.9]} 12... Nd5
{[%clk 0:01:57]} 13. Rhe1 {[%clk 0:02:53.1]} 13... Bb7 {[%clk 0:01:47.6]} 14.
Nc4 {[%clk 0:02:45]} 14... Rd8 {[%clk 0:01:38.3]} 15. Nxd5 {[%clk 0:02:35]}
15... cxd5 {[%clk 0:01:37.3]} 16. Bb4 {[%clk 0:02:35.7]} 16... Rd7 {[%clk
0:01:17.5]} 17. Nd6+ {[%clk 0:02:25.7]} 17... Kf8 {[%clk 0:01:16.1]} 18. Nxb7
{[%clk 0:02:12.9]} 18... Rxb7 {[%clk 0:01:17]} 19. Rxd5 {[%clk 0:02:13.3]} 19...
Bxb2+ {[%clk 0:01:12]} 20. Kxb2 {[%clk 0:02:07.2]} 20... Rxb4+ {[%clk
0:01:12.9]} 21. Kc3 {[%clk 0:02:08.1]} 21... Rb7 {[%clk 0:01:09.6]} 22. Rd8+
{[%clk 0:02:02.8]} 22... Kg7 {[%clk 0:01:08.3]} 23. Rxh8 {[%clk 0:02:03.7]}
23... Kxh8 {[%clk 0:01:09.2]} 24. Re4 {[%clk 0:02:04.6]} 24... Kg7 {[%clk
0:01:07.7]} 25. f4 {[%clk 0:02:01.6]} 25... e6 {[%clk 0:01:07.8]} 26. a4 {[%clk
0:02:00.3]} 26... Kf6 {[%clk 0:01:08.1]} 27. Kd3 {[%clk 0:01:53.1]} 27... h5
{[%clk 0:01:05.3]} 28. c4 {[%clk 0:01:50.2]} 28... Rb2 {[%clk 0:01:02.2]} 29.
Re2 {[%clk 0:01:48.3]} 29... Rb4 {[%clk 0:00:59.7]} 30. Ra2 {[%clk 0:01:45.3]}
30... Ke7 {[%clk 0:00:54.9]} 31. Kc3 {[%clk 0:01:42.3]} 31... a5 {[%clk
0:00:52.9]} 32. Kd4 {[%clk 0:01:40.3]} 32... Kd6 {[%clk 0:00:52.9]} 33. g3
{[%clk 0:01:38.7]} 33... f6 {[%clk 0:00:53.2]} 34. h4 {[%clk 0:01:26.3]} 34...
e5+ {[%clk 0:00:53.1]} 35. fxe5+ {[%clk 0:01:27.2]} 35... fxe5+ {[%clk
0:00:53.8]} 36. Kd3 {[%clk 0:01:28.1]} 36... Kc5 {[%clk 0:00:53.6]} 37. Re2
{[%clk 0:01:26]} 37... Rb3+ {[%clk 0:00:50.3]} 38. Kc2 {[%clk 0:01:26.3]} 38...
Rxg3 {[%clk 0:00:49.9]} 39. Rxe5+ {[%clk 0:01:26.5]} 39... Kxc4 {[%clk 0:00:47]}
40. Rxa5 {[%clk 0:01:26.2]} 40... Rg2+ {[%clk 0:00:42.8]} 41. Kd1 {[%clk
0:01:26.3]} 41... Rh2 {[%clk 0:00:33.8]} 42. Rg5 {[%clk 0:01:22.8]} 42... Rxh4
{[%clk 0:00:30.3]} 43. a5 {[%clk 0:01:19.7]} 43... Rh1+ {[%clk 0:00:28.4]} 44.
Ke2 {[%clk 0:01:19.7]} 44... Ra1 {[%clk 0:00:28.6]} 45. Rxg6 {[%clk 0:01:18.2]}
45... Rxa5 {[%clk 0:00:26.8]} 46. Ke3 {[%clk 0:01:18.5]} 46... Rf5 {[%clk
0:00:26.3]} 47. Ke4 {[%clk 0:01:18.2]} 47... Rf1 {[%clk 0:00:25.8]} 48. Rc6+
{[%clk 0:01:18.3]} 48... Kb5 {[%clk 0:00:24.3]} 49. Rh6 {[%clk 0:01:19.2]} 49...
Rh1 {[%clk 0:00:23.4]} 50. Kf4 {[%clk 0:01:19.5]} 50... Kc5 {[%clk 0:00:23.4]}
51. Kg5 {[%clk 0:01:19.8]} 51... Kd5 {[%clk 0:00:23.9]} 52. Rh8 {[%clk
0:01:17.7]} 52... h4 {[%clk 0:00:23.6]} 53. Kg4 {[%clk 0:01:17.7]} 53... h3
{[%clk 0:00:23.2]} 54. Rxh3 {[%clk 0:01:17.7]} 54... Rh2 {[%clk 0:00:23.5]} 55.
Rxh2 {[%clk 0:01:17.8]} 1-0

[Event "Early-Titled-Tuesday-Blitz-July-09-2024"]
[Site "Chess.com"]
[Date "2024.07.09"]
[Round "4"]
[White "lluiss"]
[Black "Rosh1610"]
[Result "0-1"]
[WhiteElo "2175"]
[BlackElo "2466"]
[TimeControl "180+1"]
[EndTime "8:39:07 PDT"]
[Termination "Rosh1610 won on time"]

1. Nf3 {[%clk 0:03:00.9]} 1... d5 {[%clk 0:02:57.6]} 2. d4 {[%clk 0:03:00.8]}
2... Bg4 {[%clk 0:02:57.7]} 3. Ne5 {[%clk 0:02:59.2]} 3... Bf5 {[%clk
0:02:53.2]} 4. c4 {[%clk 0:03:00.1]} 4... dxc4 {[%clk 0:02:44]} 5. Qa4+ {[%clk
0:02:37.1]} 5... Nd7 {[%clk 0:02:41.3]} 6. Qxc4 {[%clk 0:02:31.7]} 6... Nxe5
{[%clk 0:02:35.1]} 7. dxe5 {[%clk 0:02:31.7]} 7... c6 {[%clk 0:02:29.3]} 8. Nc3
{[%clk 0:02:19.2]} 8... g6 {[%clk 0:02:26.2]} 9. Bf4 {[%clk 0:02:10.2]} 9... Bg7
{[%clk 0:02:23.8]} 10. Qb3 {[%clk 0:02:10]} 10... b5 {[%clk 0:02:02.6]} 11. a4
{[%clk 0:01:55.3]} 11... a6 {[%clk 0:01:52.1]} 12. Rd1 {[%clk 0:01:33.1]} 12...
Qc7 {[%clk 0:01:49.6]} 13. axb5 {[%clk 0:01:28.2]} 13... Be6 {[%clk 0:00:27.9]}
14. Qa3 {[%clk 0:00:34.9]} 14... cxb5 {[%clk 0:00:20.3]} 15. Nxb5 {[%clk
0:00:25.7]} 15... Qb7 {[%clk 0:00:19.7]} 16. Nd4 {[%clk 0:00:17.9]} 16... Bd7
{[%clk 0:00:13.8]} 17. e3 {[%clk 0:00:08.3]} 17... Nh6 {[%clk 0:00:12.4]} 18.
Bd3 {[%clk 0:00:04]} 18... Qxg2 {[%clk 0:00:11.1]} 0-1